bitfinex/quotes_SOLUSD_20260306
["timestamp","ask_amount","ask_price","bid_price","bid_amount"]
[1772772804298,39.71901633,88.119,88.067,0.5]
[1772772806405,39.71901633,88.119,88.069,0.5]
[1772772806693,53.23889237,88.118,88.069,0.5]
[1772772807605,39.71991783,88.117,88.07,11.35460429]
[1772772807800,39.71991783,88.117,88.071,0.5]
[1772772809496,92.9588102,88.117,88.071,0.5]
[1772772810795,3.59168923,88.11,88.071,0.5]
[1772772811808,0.28432314,88.116,88.071,0.5]
[1772772812589,40.0055933,88.114,88.071,0.5]
[1772772813698,40.0055933,88.114,88.073,0.5]
[1772772815400,39.72127016,88.114,88.075,0.5]
[1772772817703,39.72127016,88.114,88.073,0.5]
[1772772819716,39.72127016,88.114,88.075,0.5]
[1772772822707,39.72127016,88.114,88.068,28.38701213]
[1772772822708,39.72127016,88.114,88.077,0.5]
[1772772825617,0.28432314,88.113,88.077,0.5]
[1772772827302,39.72217177,88.112,88.077,0.5]
[1772772827520,53.23889237,88.111,88.077,0.5]
[1772772829232,39.72307342,88.11,88.072,0.5]
[1772772829515,0.45829592,88.109,88.06,11.5557903]
[1772772829698,0.45829592,88.109,88.062,11.3556358]
[1772772830618,0.45829592,88.107,88.062,11.3556358]
[1772772831408,0.45829592,88.105,88.065,0.48235256]
[1772772833916,0.45829592,88.103,88.061,6.86581279]
[1772772834124,0.45829592,88.102,88.061,6.86581279]
[1772772834697,0.45829592,88.102,88.061,6.38346023]
[1772772834901,0.45829592,88.098,88.061,6.38346023]
[1772772835115,0.45829592,88.089,88.05,0.2]
[1772772835326,0.45829592,88.087,88.05,0.2]
[1772772836003,39.73389641,88.086,88.05,0.2]
[1772772836222,0.45829592,88.085,88.05,0.68235256]
[1772772839024,53.23889237,88.088,88.05,0.68235256]
[1772772839025,0.45829592,88.083,88.051,0.48235256]
[1772772839730,0.45829592,88.082,88.051,0.48235256]
[1772772840824,0.45829592,88.082,88.05,0.2]
[1772772841027,4.06653324,88.08,88.05,1e-08]
[1772772841233,0.47484401,88.079,88.05,1e-08]
[1772772843110,0.47484401,88.077,88.05,1e-08]
[1772772844530,0.47484401,88.077,88.051,0.4656069]
[1772772845518,0.47484401,88.074,88.051,0.4656069]
[1772772848531,11.35421752,88.073,88.051,0.4656069]
[1772772848711,0.47484401,88.072,88.051,0.4656069]
[1772772851121,53.23889237,88.076,88.051,0.4656069]
[1772772851122,0.47484401,88.07,88.051,0.4656069]
[1772772852723,0.47484401,88.068,88.05,1e-08]
[1772772853517,11.35473322,88.069,88.051,0.4656069]
[1772772857127,0.47484401,88.068,88.05,1e-08]
[1772772859849,11.35499108,88.067,88.05,0.46560691]
[1772772861257,64.59277888,88.076,88.051,0.4656069]
[1772772861426,53.23889237,88.076,88.051,0.4656069]
[1772772861626,11.35254373,88.086,88.051,0.4656069]
[1772772862139,11.35086663,88.099,88.051,0.4656069]
[1772772862342,52.70681132,88.098,88.051,0.4656069]
[1772772862754,0.47484401,88.096,88.051,0.4656069]
[1772772863135,39.7298371,88.095,88.051,0.4656069]
[1772772863338,0.47484401,88.093,88.051,0.4656069]
[1772772864034,0.47484401,88.093,88.053,0.4656069]
[1772772865149,11.3517686,88.092,88.055,0.4656069]
[1772772866147,0.47484401,88.091,88.055,0.4656069]
[1772772867950,0.47484401,88.091,88.057,0.4656069]
[1772772868149,0.47484401,88.09,88.057,0.4656069]
[1772772869953,11.84291462,88.097,88.059,0.46342371]
[1772772870150,0.4917903,88.096,88.059,0.46342371]
[1772772872436,11.84317233,88.095,88.061,0.46342371]
[1772772872647,0.4917903,88.094,88.061,0.46342371]
[1772772875146,0.4917903,88.092,88.061,0.46342371]
[1772772876467,0.4917903,88.092,88.056,0.46342371]
[1772772878270,0.4917903,88.09,88.056,0.46342371]
[1772772879268,0.4917903,88.09,88.058,0.46342371]
[1772772879459,11.35189746,88.091,88.058,0.46342371]
[1772772879946,11.84299083,88.097,88.058,0.46342371]
[1772772880142,11.35120053,88.097,88.058,0.46342371]
[1772772880366,11.35120053,88.097,88.06,0.46342371]
[1772772881559,0.4917903,88.096,88.06,0.46342371]
[1772772883868,0.4917903,88.094,88.062,0.46342371]
[1772772884868,0.4917903,88.093,88.052,0.46342371]
[1772772885865,0.4917903,88.091,88.052,0.46342371]
[1772772887375,0.4917903,88.091,88.053,0.46342371]
[1772772889056,52.70681132,88.096,88.053,0.46342371]
[1772772889057,0.4917903,88.089,88.053,0.46342371]
[1772772889251,0.4917903,88.089,88.05,1e-08]
[1772772889451,0.4917903,88.079,88.05,1e-08]
[1772772890948,0.4917903,88.078,88.026,11.36027641]
[1772772891154,3.6011478,88.08,88.026,11.36027641]
[1772772891155,0.4917903,88.075,88.026,11.36027641]
[1772772891651,0.4917903,88.068,88.003,28.40785981]
[1772772892570,0.4917903,88.068,88.019,11.36108061]
[1772772892871,0.4917903,88.068,88.03,0.66342371]
[1772772893173,0.4917903,88.065,88.03,0.66342371]
[1772772893676,0.4917903,88.065,88.03,0.2]
[1772772893899,0.4917903,88.065,88.031,0.46342371]
[1772772894686,0.4917903,88.058,88.001,0.46342371]
[1772772895186,0.4917903,88.049,88.003,0.46342371]
[1772772897254,0.4917903,88.047,88.005,0.46342371]
[1772772898677,0.4917903,88.046,88.0,0.46342371]
[1772772899283,0.4917903,88.037,88.0,0.46342371]
[1772772899967,0.47780243,88.036,87.999,0.70622058]
[1772772900366,0.47780243,88.036,88.0,0.45442771]
[1772772900573,0.47780243,88.036,88.001,0.45442771]
[1772772900878,39.75556009,88.038,88.001,0.45442771]
[1772772900879,11.35873145,88.038,88.001,0.45442771]
[1772772901059,0.47780243,88.037,88.001,0.45442771]
[1772772901677,0.47780243,88.035,88.0,0.45442771]
[1772772902768,0.47780243,88.034,87.999,0.70622058]
[1772772903771,0.47780243,88.032,87.999,1.16064829]
[1772772905699,0.47780243,88.03,87.999,1.16064829]
[1772772905976,52.70681132,88.031,87.999,1.16064829]
[1772772905977,0.47780243,88.028,87.999,1.16064829]
[1772772906182,0.47780243,88.028,87.999,0.70622058]
[1772772908664,0.47780243,88.026,88.0,0.45442771]
[1772772909883,0.47780243,88.024,88.0,0.45442771]
[1772772910562,0.47780243,88.023,87.99,0.1]
[1772772910762,0.47780243,88.023,87.99,0.55442771]
[1772772914685,11.36079616,88.022,87.992,0.45442771]
[1772772914881,0.47780243,88.021,87.992,0.45442771]
[1772772917184,11.83885673,88.02,87.992,0.45442771]
[1772772917370,11.3610543,88.02,87.994,0.45442771]
[1772772920882,11.83885673,88.02,87.994,0.45442771]
[1772772922594,11.83885673,88.02,87.996,0.45442771]
[1772772924300,0.47780243,88.037,87.998,0.45442771]
[1772772925802,0.47780243,88.037,88.0,0.45442771]
[1772772926102,11.83679193,88.036,88.0,0.45442771]
[1772772926479,11.3589895,88.036,88.0,0.45442771]
[1772772926671,0.47780243,88.035,88.0,0.45442771]
[1772772929923,0.45443181,88.033,88.002,0.49200238]
[1772772932699,52.70681132,88.035,88.002,0.49200238]
[1772772932700,0.46634414,88.031,88.002,0.49200238]
[1772772932905,0.46634414,88.031,87.992,0.46919231]
[1772772935908,0.46634414,88.029,87.994,0.46919231]
[1772772939288,0.46634414,88.029,87.99,0.1]
[1772772939289,52.70681132,88.035,87.996,0.46919231]
[1772772939689,11.35946336,88.033,87.996,0.46919231]
[1772772940298,52.70681132,88.035,87.996,0.46919231]
[1772772941694,0.46634414,88.035,87.998,0.46919231]
[1772772944010,0.46634414,88.033,88.0,0.46919231]
[1772772946816,0.46634414,88.033,88.001,39.77227531]
[1772772947000,52.70681132,88.058,88.002,0.46919231]
[1772772947001,0.46634414,88.045,88.002,0.46919231]
[1772772947695,0.46634414,88.044,88.002,0.46919231]
[1772772948815,11.35808638,88.043,88.003,11.36324898]
[1772772949016,0.46634414,88.042,88.004,0.46919231]
[1772772951208,0.46634414,88.052,88.006,0.46919231]
[1772772953618,0.46634414,88.05,88.008,0.46919231]
[1772772956820,0.46634414,88.048,88.01,0.46919231]
[1772772959913,0.46634414,88.046,88.012,0.46919231]
[1772772961800,3.60528632,88.04,88.0,0.47318359]
[1772772962004,3.60528632,88.04,87.991,0.47318359]
[1772772962318,0.45211523,88.039,87.991,0.47318359]
[1772772962524,0.45211523,88.039,87.992,0.47318359]
[1772772963019,0.45211523,88.029,87.992,0.47318359]
[1772772963630,0.45211523,88.029,87.99,0.1]
[1772772964004,0.45211523,88.027,87.99,0.57318359]
[1772772965430,0.45211523,88.027,87.991,0.47318359]
[1772772967230,11.36027991,88.026,87.993,0.47318359]
[1772772967730,11.81239514,88.026,87.993,0.47318359]
[1772772968721,11.81239514,88.026,87.994,11.3644112]
[1772772968947,11.81239514,88.026,87.995,0.47318359]
[1772772970532,11.81239514,88.026,87.996,11.36415291]
[1772772970719,11.81239514,88.026,87.997,0.47318359]
[1772772971029,11.36027991,88.026,87.997,0.47318359]
[1772772971926,0.45211523,88.037,87.997,0.47318359]
[1772772972310,0.45211523,88.037,87.992,0.47318359]
[1772772973937,0.45211523,88.035,87.994,0.47318359]
[1772772974137,0.45211523,88.034,87.99,0.57318359]
[1772772974634,0.45211523,88.034,87.991,0.47318359]
[1772772974838,0.45211523,88.032,87.991,0.47318359]
[1772772976458,0.45211523,88.03,87.993,0.47318359]
[1772772977929,11.35963467,88.031,87.993,0.47318359]
[1772772980020,0.45211523,88.055,87.996,0.47318359]
[1772772980330,11.80875575,88.055,87.996,0.47318359]
[1772772980527,0.45211523,88.054,87.996,0.47318359]
[1772772980725,0.45211523,88.054,87.999,0.47318359]
[1772772980930,11.35592944,88.06,87.999,0.47318359]
[1772772982026,0.45211523,88.074,88.009,0.75750673]
[1772772982324,0.45211523,88.074,88.018,0.47318359]
[1772772982529,0.45211523,88.079,88.018,0.47318359]
[1772772984142,0.45211523,88.077,88.023,0.75750673]
[1772772984335,0.45211523,88.077,88.024,0.47318359]
[1772772986237,0.45211523,88.075,88.027,0.47318359]
[1772772987145,0.45211523,88.109,88.03,0.47318359]
[1772772987641,0.45211523,88.107,88.03,0.47318359]
[1772772988145,0.28432314,88.104,88.034,3.69383402]
[1772772988332,0.45211523,88.103,88.036,0.47318359]
[1772772988732,0.45211523,88.098,88.036,0.47318359]
[1772772990942,0.46104295,88.095,88.038,0.46129915]
[1772772991848,0.46104295,88.095,88.039,0.46129915]
[1772772993335,0.46104295,88.093,88.041,0.46129915]
[1772772994745,0.46104295,88.092,88.041,0.46129915]
[1772772995636,0.46104295,88.09,88.043,0.46129915]
[1772772995829,0.46104295,88.089,88.043,0.46129915]
[1772772998740,16.1,88.09,88.045,0.46129915]
[1772772998741,0.46104295,88.087,88.045,0.46129915]
[1772773000151,0.46104295,88.085,88.037,0.46129915]
[1772773000341,96.49441465,88.088,88.037,0.46129915]
[1772773000342,0.46104295,88.082,88.037,0.46129915]
[1772773001844,0.46104295,88.08,88.037,0.46129915]
[1772773002045,0.46104295,88.079,88.031,0.46129915]
[1772773004862,0.46104295,88.077,88.033,0.46129915]
[1772773006240,11.35294629,88.083,88.033,0.46129915]
[1772773006447,0.46104295,88.098,88.034,0.46129915]
[1772773006745,0.46104295,88.096,88.037,0.46129915]
[1772773009666,0.46104295,88.094,88.04,0.46129915]
[1772773011972,0.46104295,88.092,88.042,0.46129915]
[1772773012669,0.46104295,88.089,88.036,0.46129915]
[1772773014769,0.46104295,88.087,88.038,0.46129915]
[1772773016852,0.46104295,88.085,88.04,0.46129915]
[1772773018945,0.46104295,88.083,88.042,0.46129915]
[1772773023179,0.47457778,88.081,88.044,0.48635245]
[1772773023358,0.47457778,88.079,88.037,0.48635245]
[1772773025765,0.47457778,88.079,88.012,0.48635245]
[1772773025766,0.47457778,88.069,88.012,0.48635245]
[1772773027058,0.47457778,88.067,88.012,0.48635245]
[1772773027269,0.47457778,88.059,88.012,0.48635245]
[1772773027878,0.47457778,88.057,88.012,0.48635245]
[1772773028966,0.47457778,88.049,88.005,0.48635245]
[1772773029469,0.47457778,88.048,88.005,0.48635245]
[1772773030179,11.35757038,88.047,88.005,0.48635245]
[1772773031873,0.47457778,88.054,88.007,0.48635245]
[1772773032866,0.47457778,88.054,88.008,0.48635245]
[1772773034864,0.47457778,88.052,88.01,0.48635245]
[1772773036377,11.35679647,88.053,88.01,0.48635245]
[1772773037177,0.47457778,88.06,88.012,0.48635245]
[1772773041682,0.47457778,88.058,88.014,0.48635245]
[1772773043285,0.47457778,88.056,88.016,0.48635245]
[1772773045883,0.47457778,88.054,88.018,0.48635245]
[1772773051402,11.82521843,88.053,88.02,0.46971268]
[1772773051795,16.1,88.068,88.02,0.46971268]
[1772773051997,0.46842196,88.067,88.02,0.46971268]
[1772773053495,11.35512002,88.066,88.021,39.76323831]
[1772773053702,0.46842196,88.065,88.022,0.46971268]
[1772773056499,0.46842196,88.063,88.023,11.36066709]
[1772773056706,0.46842196,88.063,88.024,0.46971268]
[1772773058896,0.46842196,88.061,88.026,0.46971268]
[1772773061801,0.46842196,88.059,88.028,0.46971268]
[1772773062909,0.46842196,88.058,88.009,0.46971268]
[1772773063807,39.74698206,88.057,88.01,11.36234518]
[1772773064110,0.46842196,88.056,88.011,0.46971268]
[1772773067395,0.46842196,88.054,88.013,0.46971268]
[1772773069715,0.46842196,88.052,88.015,0.46971268]
[1772773071401,0.46842196,88.062,88.016,0.46971268]
[1772773071595,0.46842196,88.062,88.018,0.75403582]
[1772773071797,0.46842196,88.062,88.019,0.46971268]
[1772773074114,0.46842196,88.06,88.021,0.46971268]
[1772773079529,0.46842196,88.058,88.023,0.46971268]
[1772773082116,0.46463083,88.056,88.025,0.47920203]
[1772773084128,0.46463083,88.061,88.025,0.47920203]
[1772773084326,0.46463083,88.061,88.027,0.47920203]
[1772773084532,11.3558937,88.06,88.027,0.47920203]
[1772773084711,0.46463083,88.059,88.027,0.47920203]
[1772773086028,0.46463083,88.069,88.028,0.47920203]
[1772773087012,0.46463083,88.067,88.03,0.47920203]
[1772773089226,0.46463083,88.067,88.029,39.75962466]
[1772773089227,0.46463083,88.065,88.032,0.47920203]
[1772773092543,0.46463083,88.063,88.034,0.47920203]
[1772773095928,11.35485489,88.069,88.036,0.47920203]
[1772773096840,16.3,88.12,88.039,0.47920203]
[1772773097029,16.3,88.12,88.035,187.42545576]
[1772773097030,0.46463083,88.115,88.05,0.47920203]
[1772773097218,0.46463083,88.115,88.057,0.47920203]
[1772773097939,0.46463083,88.113,88.06,0.47920203]
[1772773099627,0.46463083,88.113,88.063,0.47920203]
[1772773100134,0.2,88.12,88.066,0.47920203]
[1772773100135,0.46463083,88.111,88.066,0.47920203]
[1772773102235,0.46463083,88.111,88.069,0.47920203]
[1772773103546,0.2,88.12,88.072,0.47920203]
[1772773103741,0.46463083,88.122,88.073,4.82477569]
[1772773103948,0.46463083,88.133,88.083,4.82477569]
[1772773104132,0.46463083,88.139,88.086,0.47920203]
[1772773104328,0.2,88.15,88.089,0.47920203]
[1772773104329,0.46463083,88.137,88.089,0.47920203]
[1772773106529,0.46463083,88.137,88.095,0.47920203]
[1772773107930,0.46463083,88.137,88.098,0.47920203]
[1772773109050,0.46463083,88.135,88.098,0.47920203]
[1772773111065,0.46463083,88.135,88.1,0.49361149]
[1772773111235,0.49029151,88.142,88.1,0.49361149]
[1772773112854,0.49029151,88.14,88.102,0.49361149]
[1772773115047,0.49029151,88.138,88.104,0.49361149]
[1772773117253,0.49029151,88.136,88.093,0.49361149]
[1772773117434,0.49029151,88.136,88.094,11.84512237]
[1772773117631,0.49029151,88.136,88.095,0.49361149]
[1772773119458,39.7109046,88.137,88.095,0.49361149]
[1772773119756,0.49029151,88.146,88.098,0.49361149]
[1772773121853,0.49029151,88.144,88.1,0.49361149]
[1772773124659,0.49029151,88.144,88.102,0.77793463]
[1772773124861,0.49029151,88.144,88.103,0.49361149]
[1772773126257,0.49029151,88.142,88.103,0.49361149]
[1772773127060,28.36116037,88.149,88.084,3.69383402]
[1772773127061,0.49029151,88.14,88.093,0.49361149]
[1772773129550,0.49029151,88.138,88.096,0.49361149]
[1772773132552,0.49029151,88.136,88.099,0.49361149]
[1772773134774,0.49029151,88.136,88.101,0.49361149]
[1772773136876,0.49029151,88.136,88.103,0.46670693]
[1772773137073,0.49565701,88.134,88.103,0.46670693]
[1772773139178,0.49565701,88.134,88.105,0.45827981]
[1772773139363,11.3457752,88.139,88.105,0.45827981]
[1772773139681,0.48002228,88.138,88.105,0.45827981]
[1772773141068,0.47540977,88.144,88.106,0.4807508]
[1772773141266,11.34370451,88.155,88.108,0.28432314]
[1772773142073,11.34370451,88.155,88.132,0.4807508]
[1772773143278,0.47540977,88.152,88.132,0.4807508]
[1772773144576,0.47540977,88.152,88.134,0.4807508]
[1772773144886,0.47540977,88.166,88.134,0.4807508]
[1772773145184,0.47540977,88.164,88.134,0.4807508]
[1772773145362,0.47540977,88.164,88.136,0.4807508]
[1772773145678,0.47540977,88.176,88.137,0.4807508]
[1772773146177,0.1,88.18,88.137,0.4807508]
[1772773146877,0.47540977,88.184,88.138,0.4807508]
[1772773150486,0.47540977,88.182,88.14,0.4807508]
[1772773152585,11.81572117,88.181,88.142,0.4807508]
[1772773152890,0.47540977,88.18,88.142,0.4807508]
[1772773153088,11.3403114,88.181,88.142,0.49369792]
[1772773153587,11.33799702,88.199,88.175,0.49369792]
[1772773154373,39.68298959,88.199,88.143,0.49369792]
[1772773154692,39.68298959,88.199,88.145,0.49369792]
[1772773156994,3.59113835,88.19,88.136,0.49369792]
[1772773157776,0.28432314,88.179,88.124,11.34764649]
[1772773157976,3.59113835,88.18,88.124,11.34764649]
[1772773158181,0.28432314,88.179,88.124,11.34764649]
[1772773158594,0.28432314,88.179,88.125,0.49369792]
[1772773158789,0.28432314,88.177,88.127,0.49369792]
[1772773159788,0.28432314,88.175,88.127,0.49369792]
[1772773160879,0.28432314,88.175,88.129,0.49369792]
[1772773163192,0.28432314,88.175,88.128,11.34713144]
[1772773163193,0.28432314,88.173,88.123,11.3476952]
[1772773163586,0.28432314,88.173,88.121,0.49369792]
[1772773163587,3.59113835,88.17,88.121,0.49369792]
[1772773163787,19.69113835,88.17,88.121,0.49369792]
[1772773165300,0.28432314,88.167,88.116,0.49369792]
[1772773169310,0.28432314,88.165,88.118,0.49369792]
[1772773169796,39.6978427,88.166,88.118,0.49369792]
[1772773171406,0.28432314,88.165,88.118,0.49369792]
[1772773172811,0.28432314,88.163,88.118,0.49369792]
[1772773175505,3.59113835,88.16,88.112,0.49749566]
[1772773175722,3.59113835,88.16,88.113,0.49749566]
[1772773175923,19.69113835,88.16,88.113,0.49749566]
[1772773176211,19.69113835,88.16,88.114,0.49749566]
[1772773177592,39.70099478,88.159,88.114,0.49749566]
[1772773178210,0.28432314,88.158,88.108,0.49749566]
[1772773178419,0.28432314,88.149,88.108,0.49749566]
[1772773178718,16.1,88.158,88.108,0.49749566]
[1772773179022,39.70099478,88.159,88.11,0.49749566]
[1772773182006,0.28432314,88.165,88.112,0.49749566]
[1772773184112,0.28432314,88.163,88.114,0.49749566]
[1772773184609,0.28432314,88.159,88.114,0.49749566]
[1772773185817,0.28432314,88.157,88.114,0.49749566]
[1772773186408,0.28432314,88.157,88.116,0.49749566]
[1772773186806,39.70144512,88.158,88.116,0.49749566]
[1772773187899,16.1,88.166,88.118,0.49369792]
[1772773188218,0.28432314,88.165,88.118,0.49369792]
[1772773190922,0.28432314,88.163,88.118,0.49369792]
[1772773191131,0.28432314,88.163,88.12,0.49562356]
[1772773192123,55.79874324,88.164,88.12,0.49562356]
[1772773194002,55.79874324,88.164,88.121,11.34803281]
[1772773194202,55.79874324,88.164,88.122,0.49562356]
[1772773197014,55.79874324,88.164,88.124,0.49562356]
[1772773198023,11.34249807,88.164,88.126,0.49562356]
[1772773198226,16.1,88.179,88.126,0.49562356]
[1772773198227,11.34069722,88.178,88.126,0.49562356]
[1772773199325,39.69244028,88.178,88.128,0.49562356]
[1772773200322,39.69244028,88.178,88.129,0.49369792]
[1772773201414,3.59113835,88.18,88.131,0.49369792]
[1772773201926,0.28432314,88.179,88.131,0.49369792]
[1772773202820,39.69244028,88.178,88.131,0.49369792]
[1772773203026,0.28432314,88.177,88.131,0.49369792]
[1772773204924,0.46146308,88.159,88.081,8.80293285]
[1772773205121,0.46146308,88.159,88.081,8.51860971]
[1772773205327,0.46146308,88.159,88.082,0.28432314]
[1772773205508,0.46146308,88.159,88.082,0.14216157]
[1772773205705,3.59113835,88.15,88.082,0.14216157]
[1772773205910,0.46146308,88.165,88.082,0.28432314]
[1772773206216,0.46146308,88.165,88.088,8.51860971]
[1772773206415,0.46146308,88.165,88.093,0.30432314]
[1772773206917,0.46146308,88.163,88.1,0.46839203]
[1772773207831,0.46146308,88.162,88.1,0.46839203]
[1772773208231,0.46146308,88.159,88.1,0.46839203]
[1772773208529,0.46146308,88.158,88.1,0.46839203]
[1772773209235,0.47478324,88.155,88.102,0.47994927]
[1772773210819,0.28432314,88.153,88.104,0.45938385]
[1772773211020,0.75208146,88.149,88.104,0.45938385]
[1772773211219,0.46775832,88.148,88.104,0.45938385]
[1772773213034,40.17415785,88.147,88.106,0.45938385]
[1772773213237,0.46775832,88.146,88.106,0.45938385]
[1772773214720,11.34468558,88.147,88.106,0.45938385]
[1772773214920,11.81102835,88.158,88.109,0.45938385]
[1772773215536,0.46775832,88.157,88.109,0.45938385]
[1772773220450,0.47508853,88.149,88.103,0.47628885]
[1772773221444,39.70234583,88.156,88.103,0.47628885]
[1772773221626,40.17743436,88.156,88.103,0.47628885]
[1772773222123,0.47508853,88.155,88.103,0.47628885]
[1772773222542,0.47508853,88.155,88.095,0.28432314]
[1772773222543,0.47508853,88.153,88.105,0.47628885]
[1772773223124,0.47508853,88.152,88.105,0.47628885]
[1772773224749,0.47508853,88.15,88.107,0.47628885]
[1772773227030,0.47508853,88.148,88.109,0.47628885]
[1772773229238,55.80549864,88.149,88.094,11.82779973]
[1772773229239,0.28432314,88.146,88.094,11.82779973]
[1772773229439,0.47508853,88.145,88.095,0.47628885]
[1772773231566,0.46411063,88.143,88.097,0.46494032]
[1772773232758,0.46411063,88.139,88.095,0.46494032]
[1772773232957,0.46411063,88.138,88.095,0.46494032]
[1772773236140,0.46411063,88.136,88.095,0.46494032]
[1772773236539,16.38432314,88.136,88.095,0.46494032]
[1772773236745,0.46411063,88.135,88.093,0.02]
[1772773237161,0.46411063,88.129,88.093,0.02]
[1772773237659,0.46411063,88.127,88.093,0.02]
[1772773239747,10.17907068,88.128,88.093,0.02]
[1772773239954,38.54689929,88.128,88.093,0.02]
[1772773240156,38.54689929,88.128,88.093,0.49890427]
[1772773241664,0.04219145,88.127,88.093,0.49890427]
[1772773250164,0.04219145,88.126,88.093,0.02]
[1772773251965,0.48360461,88.118,88.093,0.02]
[1772773252566,0.48360461,88.117,88.063,11.355425]
[1772773252960,0.48360461,88.117,88.05,28.39295854]
[1772773254372,39.7203686,88.116,88.046,0.14216157]
[1772773254579,0.48360461,88.115,88.047,0.49462864]
[1772773256565,0.48360461,88.113,88.051,3.69383402]
[1772773256773,0.48360461,88.113,88.053,0.49462864]
[1772773259475,11.34919193,88.112,88.056,0.49462864]
[1772773260261,11.84192687,88.112,88.056,0.49462864]
[1772773260463,0.49273494,88.111,88.056,0.49462864]
[1772773260682,0.49273494,88.122,88.059,0.4879392]
[1772773262679,11.34803281,88.121,88.064,0.4879392]
[1772773262879,0.49273494,88.12,88.065,0.4879392]
[1772773265165,0.49273494,88.12,88.064,0.28432314]
[1772773265166,11.34803281,88.121,88.068,0.4879392]
[1772773265365,16.1,88.125,88.068,0.4879392]
[1772773266182,27.44764119,88.125,88.068,0.4879392]
[1772773266576,0.49273494,88.138,88.072,0.4879392]
[1772773266783,0.49273494,88.148,88.087,0.4879392]
[1772773267287,28.35734919,88.161,88.092,0.4879392]
[1772773267288,0.49273494,88.146,88.092,0.4879392]
[1772773267486,0.49273494,88.146,88.093,0.4879392]
[1772773267789,11.34468558,88.147,88.093,0.4879392]
[1772773268389,0.49273494,88.146,88.093,0.4879392]
[1772773269880,0.49273494,88.146,88.096,0.4879392]
[1772773270300,0.49273494,88.144,88.096,0.4879392]
[1772773271971,0.49273494,88.144,88.097,39.72893514]
[1772773272167,16.1,88.16,88.097,39.72893514]
[1772773272168,16.1,88.171,88.099,0.4879392]
[1772773272385,0.49273494,88.169,88.109,0.4879392]
[1772773272673,0.49273494,88.169,88.11,0.4879392]
[1772773274194,11.34198348,88.168,88.111,39.72262259]
[1772773274372,28.35083718,88.181,88.111,39.72262259]
[1772773274373,0.49273494,88.181,88.119,0.4879392]
[1772773274577,0.49273494,88.179,88.119,0.4879392]
[1772773275385,28.34757721,88.191,88.116,0.4879392]
[1772773275574,28.34788524,88.19,88.116,0.4879392]
[1772773276575,0.28432314,88.198,88.118,0.4879392]
[1772773276776,0.28432314,88.189,88.121,0.4879392]
[1772773276976,3.59176612,88.18,88.121,0.4879392]
[1772773277188,0.28432314,88.179,88.121,0.4879392]
[1772773277391,0.49273494,88.178,88.121,0.4879392]
[1772773279485,0.49273494,88.175,88.123,0.4879392]
[1772773280492,0.49273494,88.168,88.08,0.4879392]
[1772773280678,0.49273494,88.168,88.088,0.4879392]
[1772773280870,0.49273494,88.168,88.09,0.4879392]
[1772773281776,0.49273494,88.158,88.092,0.4879392]
[1772773283797,0.49273494,88.148,88.092,0.4879392]
[1772773283992,0.49273494,88.145,88.094,0.4879392]
[1772773284694,0.49273494,88.138,88.087,0.4879392]
[1772773286880,0.49273494,88.129,88.073,0.4879392]
[1772773287083,0.49273494,88.119,88.073,0.4879392]
[1772773289890,0.48408818,88.117,88.075,0.47071122]
[1772773294288,0.4930234,88.115,88.077,0.48479267]
[1772773294690,0.4930234,88.144,88.078,0.48479267]
[1772773294884,0.4930234,88.138,88.078,0.48479267]
[1772773296304,0.4930234,88.136,88.08,0.48479267]
[1772773299004,11.34623021,88.135,88.081,39.73615194]
[1772773299241,0.4930234,88.134,88.082,0.48479267]
[1772773300302,3.59176612,88.13,88.082,0.48479267]
[1772773300488,0.4930234,88.129,88.082,0.48479267]
[1772773300894,0.4930234,88.129,87.989,25.36638923]
[1772773300895,0.4930234,88.119,88.075,11.35391768]
[1772773301091,0.4930234,88.119,88.059,28.38993918]
[1772773301092,0.4930234,88.117,88.072,0.48479267]
[1772773302902,0.4930234,88.115,88.074,0.48479267]
[1772773305295,0.4930234,88.113,88.076,0.48479267]
[1772773306814,0.4930234,88.112,88.076,0.48479267]
[1772773307923,0.4930234,88.11,88.076,0.48479267]
[1772773308123,0.4930234,88.11,88.077,11.83849454]
[1772773308796,0.4930234,88.11,88.078,0.48479267]
[1772773309507,0.4930234,88.099,88.048,0.48479267]
[1772773309913,0.4930234,88.099,88.034,28.39799547]
[1772773309914,0.4930234,88.097,88.05,0.48479267]
[1772773315813,0.4930234,88.095,88.052,0.48479267]
[1772773320333,0.4986944,88.116,88.055,0.47089397]
[1772773323831,11.34880553,88.115,88.057,0.28432314]
[1772773324032,0.4986944,88.114,88.058,0.47089397]
[1772773326235,0.4986944,88.112,88.06,0.47089397]
[1772773327740,0.4986944,88.128,88.07,0.47089397]
[1772773328215,0.4986944,88.126,88.073,0.47089397]
[1772773329331,28.36248912,88.145,88.073,0.47089397]
[1772773329332,0.4986944,88.131,88.073,0.47089397]
[1772773329532,11.34673403,88.132,88.076,0.47089397]
[1772773330236,11.34673403,88.132,88.081,0.47089397]
[1772773330620,0.4986944,88.131,88.081,0.47089397]
[1772773331517,11.84468981,88.137,88.083,0.47089397]
[1772773331719,11.84468981,88.137,88.084,0.47089397]
[1772773331943,0.4986944,88.136,88.084,0.47089397]
[1772773332837,11.34599541,88.137,88.076,0.47089397]